Workbook

Sheet Chart
A1: Orthodox Easter Computus Jitter (Easter Sunday relative to Mean Elapsed Months)
A2: ="Solar cycle contains 28 years (common = 365 days, every 4th year leap = 366 days) = "&(28*365+7)&" days per cycle = "&reducefraction(28*365+7,7,FALSE,FALSE,TRUE)&" weeks per cycle." -> Solar cycle contains 28 years (common = 365 days, every 4th year leap = 366 days) = 10227 days per cycle = 1461 weeks per cycle.
A3: ="Lunar cycle contains "&MPC&" months ("&FMPC&" full, "&DMPC&" deficient) = "&DPC&" days = "&reducefraction(DPC,7,FALSE,FALSE,TRUE)&" weeks = "&Yerms&" yerms. Lunisolar cycle = 28 x 19 = "&(28*19)&" years." -> Lunar cycle contains 940 months (499 full, 441 deficient) = 27759 days = 3965+4/7 weeks = 58 yerms. Lunisolar cycle = 28 x 19 = 532 years.
A4: ="Mean month = "&"29+"&reducefraction(FMPC,MPC,FALSE,FALSE,TRUE)&" days = 29d 12h 44m "&reducefraction(240*(360*FMPC-191*MPC),MPC,FALSE,FALSE,TRUE)&" seconds, or about 29"&MID(FMPC/MPC,2,20)&" days or 29d 12h 44m "&ROUND(240*(360*FMPC-191*MPC)/MPC,6)&" seconds." -> Mean month = 29+499/940 days = 29d 12h 44m 25+25/47 seconds, or about 29.530851063829787 days or 29d 12h 44m 25.531915 seconds.
A5: ="Duration per ''Part'' = 1/"&MPC&" day = "&reducefraction(24,MPC,FALSE,FALSE,TRUE)&" hour = "&reducefraction(1440,MPC,FALSE,FALSE,TRUE)&" minutes = "&reducefraction(86400,MPC,FALSE,FALSE,TRUE)&" seconds. One hour = "&reducefraction(MPC,24,FALSE,FALSE,TRUE)&" parts." -> Duration per ''Part'' = 1/940 day = 6/235 hour = 1+25/47 minutes = 91+43/47 seconds. One hour = 39+1/6 parts.
Q7: TRUE
Q17: 26
Q18: Selected
Q19: Year in
Q20: Solar Cycle
Q21: (1 to 28)
Q31: 1
Q32: Selected
Q33: Year in
Q34: Lunar Cycle
Q35: (1 to 19)
I45: =ZoomLevel -> 1

Sheet Data
A1: Lunar Cycle Jitter Evaluator
A2: by Dr. Irv Bromberg, University of Toronto, Canada
A3: http://individual.utoronto.ca/intervalmath/jitter/index.html | D3: Jitter | E3: (parts)
A4: Decimal Mean Month: | B4: =29+FMPC/MPC -> 29.53085106 | D4: =MAX(I:I) -> 6101 | E4: maximum | F4: =reducefraction(JitterMax*MPC,MPC,FALSE,FALSE,FALSE) -> 6101
A5: Months per Cycle (Parts per Day): | B5: 940 | C5: months (parts) | D5: =MIN(I:I) -> -1410 | E5: minimum | F5: =reducefraction(JitterMin*MPC,MPC,FALSE,FALSE,FALSE) -> –(1410)
A6: 30-day Months per Cycle: | B6: 499 | C6: months | D6: =D4-D5 -> 7511 | E6: range | F6: =reducefraction(JitterRange*MPC,MPC,FALSE,FALSE,FALSE) -> 7511
A7: 29-day Months per Cycle: | B7: =MPC-FMPC -> 441 | C7: months | D7: ="Jitter range = "&F6&" parts = "&reducefraction(F6*24,MPC,FALSE,FALSE,FALSE)&" hours" -> Jitter range = 7511 parts = 191 + 181 / 235 hours
A8: Days per Cycle (Parts per Month): | B8: =29*MPC+FMPC -> 27759 | C8: days (parts) | E8: Years Per Cycle: | F8: =4*19 -> 76
A9: Yerms per Cycle: | B9: =2*DPC-59*MPC -> 58 | C9: yerms | D9: Limits for Chart:
A10: Mean Month: | B10: ="29 + "&reducefraction(FMPC,MPC,FALSE,FALSE,FALSE) -> 29 + 499 / 940 | C10: days | D10: x | E10: y | F10: Hours
A11: Mean Month >29d: | B11: =FMPC/MPC -> 0.530851063829787 | C11: days | D11: =A22 -> 1 | E11: =JitterMax -> 6101 | F11: =E11*24/MPC -> 155.7702128
A12: Mean Month >29d 12h 44m: | B12: =reducefraction(240*(360*FMPC-191*MPC),MPC,FALSE,FALSE,TRUE) -> 25+25/47 | C12: seconds | D12: =7*YPC+1 -> 533 | E12: =E11 -> 6101 | F12: =E12*24/MPC -> 155.7702128
A13: … or approximately: | B13: =240*(360*FMPC-191*MPC)/MPC -> 25.53191489 | C13: seconds
A14: Has Yerm Zero: | B14: =MeanMonth>26/49 -> TRUE | D14: =D11 -> 1 | E14: 0
A15: 17-month Yerms per Cycle: | B15: =443*MPC-15*DPC -> 35 | C15: yerms | D15: =D12 -> 533 | E15: 0
A16: 15-month Yerms per Cycle: | B16: =Yerms-n17my -> 23 | C16: yerms
A17: 49-month subcycles: | B17: =INT(Yerms/3) -> 19 | D17: =A22 -> 1 | E17: =JitterMin -> -1410 | F17: =E17*24/MPC -> -36
A18: Duration per Part: | B18: =reducefraction(1440,MPC,FALSE,FALSE,FALSE) -> 1 + 25 / 47 | C18: minutes | D18: =D12 -> 533 | E18: =E17 -> -1410 | F18: =E18*24/MPC -> -36
G19: Elapsed | H19: Elapsed
D20: Easter Sunday | E20: Elapsed | F20: Easter Sunday | G20: Lunar | H20: Mean Month | I20: Difference
A21: Julian Year | B21: isLeapYear | C21: Year Length | D21: (days) | E21: Days | F21: (parts) | G21: Months | H21: Parts | I21: (parts)
A22: 1 | B22: =isJulianLeapYear(A22) -> FALSE | C22: =IF(B22,366,365) -> 365 | D22: =OrthodoxEaster(A22) -> 84 | F22: 0 | H22: 0 | I22: =F22-H22 -> 0
A23: =A22+1 -> 2 | B23: =isJulianLeapYear(A23) -> FALSE | C23: =IF(B23,366,365) -> 365 | D23: =OrthodoxEaster(A23) -> 469 | E23: =D23-D22 -> 385 | F23: =F22+(D23-D22)*PPD -> 361900 | G23: =ROUND((D23-D22)/DecMeanMon,0) -> 13 | H23: =H22+G23*PPM -> 360867 | I23: =F23-H23 -> 1033
A24: =A23+1 -> 3 | B24: FALSE | C24: 365 | D24: 826 | E24: 357 | F24: =F23+(D24-D23)*PPD -> 697480 | G24: 12 | H24: =H23+G24*PPM -> 693975 | I24: 3505
A25: 4 | B25: TRUE | C25: 366 | D25: 1176 | E25: 350 | F25: 1026480 | G25: 12 | H25: 1027083 | I25: -603
A26: 5 | B26: FALSE | C26: 365 | D26: 1561 | E26: 385 | F26: 1388380 | G26: 13 | H26: 1387950 | I26: 430
A27: 6 | B27: FALSE | C27: 365 | D27: 1918 | E27: 357 | F27: 1723960 | G27: 12 | H27: 1721058 | I27: 2902
A28: 7 | B28: FALSE | C28: 365 | D28: 2303 | E28: 385 | F28: 2085860 | G28: 13 | H28: 2081925 | I28: 3935
A29: 8 | B29: TRUE | C29: 366 | D29: 2653 | E29: 350 | F29: 2414860 | G29: 12 | H29: 2415033 | I29: -173
A30: 9 | B30: FALSE | C30: 365 | D30: 3010 | E30: 357 | F30: 2750440 | G30: 12 | H30: 2748141 | I30: 2299
A31: 10 | B31: FALSE | C31: 365 | D31: 3395 | E31: 385 | F31: 3112340 | G31: 13 | H31: 3109008 | I31: 3332
A32: 11 | B32: FALSE | C32: 365 | D32: 3745 | E32: 350 | F32: 3441340 | G32: 12 | H32: 3442116 | I32: -776
A33: 12 | B33: TRUE | C33: 366 | D33: 4102 | E33: 357 | F33: 3776920 | G33: 12 | H33: 3775224 | I33: 1696
A34: 13 | B34: FALSE | C34: 365 | D34: 4487 | E34: 385 | F34: 4138820 | G34: 13 | H34: 4136091 | I34: 2729
A35: 14 | B35: FALSE | C35: 365 | D35: 4844 | E35: 357 | F35: 4474400 | G35: 12 | H35: 4469199 | I35: 5201
A36: 15 | B36: FALSE | C36: 365 | D36: 5194 | E36: 350 | F36: 4803400 | G36: 12 | H36: 4802307 | I36: 1093
A37: 16 | B37: TRUE | C37: 366 | D37: 5579 | E37: 385 | F37: 5165300 | G37: 13 | H37: 5163174 | I37: 2126
A38: 17 | B38: FALSE | C38: 365 | D38: 5936 | E38: 357 | F38: 5500880 | G38: 12 | H38: 5496282 | I38: 4598
A39: 18 | B39: FALSE | C39: 365 | D39: 6321 | E39: 385 | F39: 5862780 | G39: 13 | H39: 5857149 | I39: 5631
A40: 19 | B40: FALSE | C40: 365 | D40: 6671 | E40: 350 | F40: 6191780 | G40: 12 | H40: 6190257 | I40: 1523
A41: 20 | B41: TRUE | C41: 366 | D41: 7028 | E41: 357 | F41: 6527360 | G41: 12 | H41: 6523365 | I41: 3995
A42: 21 | B42: FALSE | C42: 365 | D42: 7413 | E42: 385 | F42: 6889260 | G42: 13 | H42: 6884232 | I42: 5028
A43: 22 | B43: FALSE | C43: 365 | D43: 7763 | E43: 350 | F43: 7218260 | G43: 12 | H43: 7217340 | I43: 920
A44: 23 | B44: FALSE | C44: 365 | D44: 8120 | E44: 357 | F44: 7553840 | G44: 12 | H44: 7550448 | I44: 3392
A45: 24 | B45: TRUE | C45: 366 | D45: 8505 | E45: 385 | F45: 7915740 | G45: 13 | H45: 7911315 | I45: 4425
A46: 25 | B46: FALSE | C46: 365 | D46: 8855 | E46: 350 | F46: 8244740 | G46: 12 | H46: 8244423 | I46: 317
A47: 26 | B47: FALSE | C47: 365 | D47: 9240 | E47: 385 | F47: 8606640 | G47: 13 | H47: 8605290 | I47: 1350
A48: 27 | B48: FALSE | C48: 365 | D48: 9597 | E48: 357 | F48: 8942220 | G48: 12 | H48: 8938398 | I48: 3822
A49: 28 | B49: TRUE | C49: 366 | D49: 9947 | E49: 350 | F49: 9271220 | G49: 12 | H49: 9271506 | I49: -286
A50: 29 | B50: FALSE | C50: 365 | D50: 10332 | E50: 385 | F50: 9633120 | G50: 13 | H50: 9632373 | I50: 747
A51: 30 | B51: FALSE | C51: 365 | D51: 10689 | E51: 357 | F51: 9968700 | G51: 12 | H51: 9965481 | I51: 3219
A52: 31 | B52: FALSE | C52: 365 | D52: 11039 | E52: 350 | F52: 10297700 | G52: 12 | H52: 10298589 | I52: -889
A53: 32 | B53: TRUE | C53: 366 | D53: 11424 | E53: 385 | F53: 10659600 | G53: 13 | H53: 10659456 | I53: 144
A54: 33 | B54: FALSE | C54: 365 | D54: 11781 | E54: 357 | F54: 10995180 | G54: 12 | H54: 10992564 | I54: 2616
A55: 34 | B55: FALSE | C55: 365 | D55: 12138 | E55: =D55-D54 -> 357 | F55: 11330760 | G55: 12 | H55: 11325672 | I55: 5088
A56: 35 | B56: FALSE | C56: 365 | D56: 12516 | E56: 378 | F56: 11686080 | G56: 13 | H56: 11686539 | I56: -459
A57: 36 | B57: TRUE | C57: 366 | D57: 12873 | E57: 357 | F57: 12021660 | G57: 12 | H57: 12019647 | I57: 2013
A58: 37 | B58: FALSE | C58: 365 | D58: 13258 | E58: 385 | F58: 12383560 | G58: 13 | H58: 12380514 | I58: 3046
A59: 38 | B59: FALSE | C59: 365 | D59: 13608 | E59: 350 | F59: 12712560 | G59: 12 | H59: 12713622 | I59: -1062
A60: 39 | B60: FALSE | C60: 365 | D60: 13965 | E60: 357 | F60: 13048140 | G60: 12 | H60: 13046730 | I60: 1410
A61: 40 | B61: TRUE | C61: 366 | D61: 14350 | E61: 385 | F61: 13410040 | G61: 13 | H61: 13407597 | I61: 2443
A62: 41 | B62: FALSE | C62: 365 | D62: 14707 | E62: 357 | F62: 13745620 | G62: 12 | H62: 13740705 | I62: 4915
A63: 42 | B63: FALSE | C63: 365 | D63: 15057 | E63: 350 | F63: 14074620 | G63: 12 | H63: 14073813 | I63: 807
A64: 43 | B64: FALSE | C64: 365 | D64: 15442 | E64: 385 | F64: 14436520 | G64: 13 | H64: 14434680 | I64: 1840
A65: 44 | B65: TRUE | C65: 366 | D65: 15799 | E65: 357 | F65: 14772100 | G65: 12 | H65: 14767788 | I65: 4312
A66: 45 | B66: FALSE | C66: 365 | D66: 16184 | E66: 385 | F66: 15134000 | G66: 13 | H66: 15128655 | I66: 5345
A67: 46 | B67: FALSE | C67: 365 | D67: 16534 | E67: 350 | F67: 15463000 | G67: 12 | H67: 15461763 | I67: 1237
A68: 47 | B68: FALSE | C68: 365 | D68: 16891 | E68: 357 | F68: 15798580 | G68: 12 | H68: 15794871 | I68: 3709
A69: 48 | B69: TRUE | C69: 366 | D69: 17276 | E69: 385 | F69: 16160480 | G69: 13 | H69: 16155738 | I69: 4742
A70: 49 | B70: FALSE | C70: 365 | D70: 17626 | E70: 350 | F70: 16489480 | G70: 12 | H70: 16488846 | I70: 634
A71: 50 | B71: FALSE | C71: 365 | D71: 17983 | E71: 357 | F71: 16825060 | G71: 12 | H71: 16821954 | I71: 3106
A72: 51 | B72: FALSE | C72: 365 | D72: 18368 | E72: 385 | F72: 17186960 | G72: 13 | H72: 17182821 | I72: 4139
A73: 52 | B73: TRUE | C73: 366 | D73: 18718 | E73: 350 | F73: 17515960 | G73: 12 | H73: 17515929 | I73: 31
A74: 53 | B74: FALSE | C74: 365 | D74: 19075 | E74: 357 | F74: 17851540 | G74: 12 | H74: 17849037 | I74: 2503
A75: 54 | B75: FALSE | C75: 365 | D75: 19460 | E75: 385 | F75: 18213440 | G75: 13 | H75: 18209904 | I75: 3536
A76: 55 | B76: FALSE | C76: 365 | D76: 19810 | E76: 350 | F76: 18542440 | G76: 12 | H76: 18543012 | I76: -572
A77: 56 | B77: TRUE | C77: 366 | D77: 20195 | E77: 385 | F77: 18904340 | G77: 13 | H77: 18903879 | I77: 461
A78: 57 | B78: FALSE | C78: 365 | D78: 20552 | E78: 357 | F78: 19239920 | G78: 12 | H78: 19236987 | I78: 2933
A79: 58 | B79: FALSE | C79: 365 | D79: 20902 | E79: 350 | F79: 19568920 | G79: 12 | H79: 19570095 | I79: -1175
A80: 59 | B80: FALSE | C80: 365 | D80: 21287 | E80: 385 | F80: 19930820 | G80: 13 | H80: 19930962 | I80: -142
A81: 60 | B81: TRUE | C81: 366 | D81: 21644 | E81: 357 | F81: 20266400 | G81: 12 | H81: 20264070 | I81: 2330
A82: 61 | B82: FALSE | C82: 365 | D82: 22001 | E82: 357 | F82: 20601980 | G82: 12 | H82: 20597178 | I82: 4802
A83: 62 | B83: FALSE | C83: 365 | D83: 22379 | E83: 378 | F83: 20957300 | G83: 13 | H83: 20958045 | I83: -745
A84: 63 | B84: FALSE | C84: 365 | D84: 22736 | E84: 357 | F84: 21292880 | G84: 12 | H84: 21291153 | I84: 1727
A85: 64 | B85: TRUE | C85: 366 | D85: 23121 | E85: 385 | F85: 21654780 | G85: 13 | H85: 21652020 | I85: 2760
A86: 65 | B86: FALSE | C86: 365 | D86: 23478 | E86: 357 | F86: 21990360 | G86: 12 | H86: 21985128 | I86: 5232
A87: 66 | B87: =isJulianLeapYear(A87) -> FALSE | C87: =IF(B87,366,365) -> 365 | D87: =OrthodoxEaster(A87) -> 23828 | E87: =D87-D86 -> 350 | F87: 22319360 | G87: =ROUND((D87-D86)/DecMeanMon,0) -> 12 | H87: 22318236 | I87: =F87-H87 -> 1124
A88: =A87+1 -> 67 | B88: FALSE | C88: 365 | D88: 24213 | E88: =D88-D87 -> 385 | F88: =F87+(D88-D87)*PPD -> 22681260 | G88: 13 | H88: =H87+G88*PPM -> 22679103 | I88: =F88-H88 -> 2157
A89: =A88+1 -> 68 | B89: TRUE | C89: 366 | D89: 24570 | E89: =D89-D88 -> 357 | F89: =F88+(D89-D88)*PPD -> 23016840 | G89: 12 | H89: =H88+G89*PPM -> 23012211 | I89: =F89-H89 -> 4629
A90: =A89+1 -> 69 | B90: FALSE | C90: 365 | D90: 24920 | E90: =D90-D89 -> 350 | F90: =F89+(D90-D89)*PPD -> 23345840 | G90: 12 | H90: =H89+G90*PPM -> 23345319 | I90: =F90-H90 -> 521
A91: =A90+1 -> 70 | B91: FALSE | C91: 365 | D91: 25305 | E91: =D91-D90 -> 385 | F91: =F90+(D91-D90)*PPD -> 23707740 | G91: 13 | H91: =H90+G91*PPM -> 23706186 | I91: =F91-H91 -> 1554
A92: 71 | B92: FALSE | C92: 365 | D92: 25662 | E92: 357 | F92: 24043320 | G92: 12 | H92: 24039294 | I92: 4026
A93: 72 | B93: TRUE | C93: 366 | D93: 26012 | E93: 350 | F93: 24372320 | G93: 12 | H93: 24372402 | I93: -82
A94: 73 | B94: FALSE | C94: 365 | D94: 26397 | E94: 385 | F94: 24734220 | G94: 13 | H94: 24733269 | I94: 951
A95: 74 | B95: FALSE | C95: 365 | D95: 26754 | E95: 357 | F95: 25069800 | G95: 12 | H95: 25066377 | I95: 3423
A96: 75 | B96: FALSE | C96: 365 | D96: 27139 | E96: 385 | F96: 25431700 | G96: 13 | H96: 25427244 | I96: 4456
A97: 76 | B97: TRUE | C97: 366 | D97: 27489 | E97: 350 | F97: 25760700 | G97: 12 | H97: 25760352 | I97: 348
A98: 77 | B98: FALSE | C98: 365 | D98: 27846 | E98: 357 | F98: 26096280 | G98: 12 | H98: 26093460 | I98: 2820
A99: 78 | B99: FALSE | C99: 365 | D99: 28231 | E99: 385 | F99: 26458180 | G99: 13 | H99: 26454327 | I99: 3853
A100: 79 | B100: FALSE | C100: 365 | D100: 28581 | E100: 350 | F100: 26787180 | G100: 12 | H100: 26787435 | I100: -255
A101: 80 | B101: TRUE | C101: 366 | D101: 28938 | E101: 357 | F101: 27122760 | G101: 12 | H101: 27120543 | I101: 2217
A102: 81 | B102: FALSE | C102: 365 | D102: 29323 | E102: 385 | F102: 27484660 | G102: 13 | H102: 27481410 | I102: 3250
A103: 82 | B103: FALSE | C103: 365 | D103: 29673 | E103: 350 | F103: 27813660 | G103: 12 | H103: 27814518 | I103: -858
A104: 83 | B104: FALSE | C104: 365 | D104: 30058 | E104: 385 | F104: 28175560 | G104: 13 | H104: 28175385 | I104: 175
A105: 84 | B105: TRUE | C105: 366 | D105: 30415 | E105: 357 | F105: 28511140 | G105: 12 | H105: 28508493 | I105: 2647
A106: 85 | B106: FALSE | C106: 365 | D106: 30772 | E106: 357 | F106: 28846720 | G106: 12 | H106: 28841601 | I106: 5119
A107: 86 | B107: FALSE | C107: 365 | D107: 31150 | E107: 378 | F107: 29202040 | G107: 13 | H107: 29202468 | I107: -428
A108: 87 | B108: FALSE | C108: 365 | D108: 31507 | E108: 357 | F108: 29537620 | G108: 12 | H108: 29535576 | I108: 2044
A109: 88 | B109: TRUE | C109: 366 | D109: 31864 | E109: 357 | F109: 29873200 | G109: 12 | H109: 29868684 | I109: 4516
A110: 89 | B110: FALSE | C110: 365 | D110: 32249 | E110: 385 | F110: 30235100 | G110: 13 | H110: 30229551 | I110: 5549
A111: 90 | B111: FALSE | C111: 365 | D111: 32599 | E111: 350 | F111: 30564100 | G111: 12 | H111: 30562659 | I111: 1441
A112: 91 | B112: FALSE | C112: 365 | D112: 32956 | E112: 357 | F112: 30899680 | G112: 12 | H112: 30895767 | I112: 3913
A113: 92 | B113: TRUE | C113: 366 | D113: 33341 | E113: 385 | F113: 31261580 | G113: 13 | H113: 31256634 | I113: 4946
A114: 93 | B114: FALSE | C114: 365 | D114: 33691 | E114: 350 | F114: 31590580 | G114: 12 | H114: 31589742 | I114: 838
A115: 94 | B115: FALSE | C115: 365 | D115: 34076 | E115: 385 | F115: 31952480 | G115: 13 | H115: 31950609 | I115: 1871
A116: 95 | B116: FALSE | C116: 365 | D116: 34433 | E116: 357 | F116: 32288060 | G116: 12 | H116: 32283717 | I116: 4343
A117: 96 | B117: TRUE | C117: 366 | D117: 34783 | E117: 350 | F117: 32617060 | G117: 12 | H117: 32616825 | I117: 235
A118: 97 | B118: FALSE | C118: 365 | D118: 35168 | E118: 385 | F118: 32978960 | G118: 13 | H118: 32977692 | I118: 1268
A119: 98 | B119: =isJulianLeapYear(A119) -> FALSE | C119: =IF(B119,366,365) -> 365 | D119: 35525 | E119: 357 | F119: 33314540 | G119: 12 | H119: 33310800 | I119: 3740
A120: 99 | B120: FALSE | C120: 365 | D120: 35875 | E120: 350 | F120: 33643540 | G120: 12 | H120: 33643908 | I120: -368
A121: 100 | B121: TRUE | C121: 366 | D121: 36260 | E121: 385 | F121: 34005440 | G121: 13 | H121: 34004775 | I121: 665
A122: 101 | B122: FALSE | C122: 365 | D122: 36617 | E122: 357 | F122: 34341020 | G122: 12 | H122: 34337883 | I122: 3137
A123: 102 | B123: FALSE | C123: 365 | D123: 37002 | E123: 385 | F123: 34702920 | G123: 13 | H123: 34698750 | I123: 4170
A124: 103 | B124: FALSE | C124: 365 | D124: 37352 | E124: 350 | F124: 35031920 | G124: 12 | H124: 35031858 | I124: 62
A125: 104 | B125: TRUE | C125: 366 | D125: 37709 | E125: 357 | F125: 35367500 | G125: 12 | H125: 35364966 | I125: 2534
A126: 105 | B126: FALSE | C126: 365 | D126: 38094 | E126: 385 | F126: 35729400 | G126: 13 | H126: 35725833 | I126: 3567
A127: 106 | B127: FALSE | C127: 365 | D127: 38444 | E127: 350 | F127: 36058400 | G127: 12 | H127: 36058941 | I127: -541
A128: 107 | B128: FALSE | C128: 365 | D128: 38801 | E128: 357 | F128: 36393980 | G128: 12 | H128: 36392049 | I128: 1931
A129: 108 | B129: TRUE | C129: 366 | D129: 39186 | E129: 385 | F129: 36755880 | G129: 13 | H129: 36752916 | I129: 2964
A130: 109 | B130: FALSE | C130: 365 | D130: 39543 | E130: 357 | F130: 37091460 | G130: 12 | H130: 37086024 | I130: 5436
A131: 110 | B131: FALSE | C131: 365 | D131: 39893 | E131: 350 | F131: 37420460 | G131: 12 | H131: 37419132 | I131: 1328
A132: 111 | B132: FALSE | C132: 365 | D132: 40278 | E132: 385 | F132: 37782360 | G132: 13 | H132: 37779999 | I132: 2361
A133: 112 | B133: TRUE | C133: 366 | D133: 40635 | E133: 357 | F133: 38117940 | G133: 12 | H133: 38113107 | I133: 4833
A134: 113 | B134: FALSE | C134: 365 | D134: 41020 | E134: 385 | F134: 38479840 | G134: 13 | H134: 38473974 | I134: 5866
A135: 114 | B135: FALSE | C135: 365 | D135: 41370 | E135: 350 | F135: 38808840 | G135: 12 | H135: 38807082 | I135: 1758
A136: 115 | B136: FALSE | C136: 365 | D136: 41727 | E136: 357 | F136: 39144420 | G136: 12 | H136: 39140190 | I136: 4230
A137: 116 | B137: TRUE | C137: 366 | D137: 42112 | E137: 385 | F137: 39506320 | G137: 13 | H137: 39501057 | I137: 5263
A138: 117 | B138: FALSE | C138: 365 | D138: 42462 | E138: 350 | F138: 39835320 | G138: 12 | H138: 39834165 | I138: 1155
A139: 118 | B139: FALSE | C139: 365 | D139: 42819 | E139: 357 | F139: 40170900 | G139: 12 | H139: 40167273 | I139: 3627
A140: 119 | B140: FALSE | C140: 365 | D140: 43204 | E140: 385 | F140: 40532800 | G140: 13 | H140: 40528140 | I140: 4660
A141: 120 | B141: TRUE | C141: 366 | D141: 43554 | E141: 350 | F141: 40861800 | G141: 12 | H141: 40861248 | I141: 552
A142: 121 | B142: FALSE | C142: 365 | D142: 43939 | E142: 385 | F142: 41223700 | G142: 13 | H142: 41222115 | I142: 1585
A143: 122 | B143: FALSE | C143: 365 | D143: 44296 | E143: 357 | F143: 41559280 | G143: 12 | H143: 41555223 | I143: 4057
A144: 123 | B144: FALSE | C144: 365 | D144: 44646 | E144: 350 | F144: 41888280 | G144: 12 | H144: 41888331 | I144: -51
A145: 124 | B145: TRUE | C145: 366 | D145: 45031 | E145: 385 | F145: 42250180 | G145: 13 | H145: 42249198 | I145: 982
A146: 125 | B146: FALSE | C146: 365 | D146: 45388 | E146: 357 | F146: 42585760 | G146: 12 | H146: 42582306 | I146: 3454
A147: 126 | B147: FALSE | C147: 365 | D147: 45738 | E147: 350 | F147: 42914760 | G147: 12 | H147: 42915414 | I147: -654
A148: 127 | B148: FALSE | C148: 365 | D148: 46123 | E148: 385 | F148: 43276660 | G148: 13 | H148: 43276281 | I148: 379
A149: 128 | B149: TRUE | C149: 366 | D149: 46480 | E149: 357 | F149: 43612240 | G149: 12 | H149: 43609389 | I149: 2851
A150: 129 | B150: FALSE | C150: 365 | D150: 46837 | E150: 357 | F150: 43947820 | G150: 12 | H150: 43942497 | I150: 5323
A151: 130 | B151: =isJulianLeapYear(A151) -> FALSE | C151: =IF(B151,366,365) -> 365 | D151: =OrthodoxEaster(A151) -> 47215 | E151: 378 | F151: 44303140 | G151: =ROUND((D151-D150)/DecMeanMon,0) -> 13 | H151: 44303364 | I151: -224
A152: 131 | B152: FALSE | C152: 365 | D152: 47572 | E152: 357 | F152: 44638720 | G152: 12 | H152: 44636472 | I152: 2248
A153: 132 | B153: TRUE | C153: 366 | D153: 47957 | E153: 385 | F153: 45000620 | G153: 13 | H153: 44997339 | I153: 3281
A154: 133 | B154: FALSE | C154: 365 | D154: 48307 | E154: 350 | F154: 45329620 | G154: 12 | H154: 45330447 | I154: -827
A155: =A154+1 -> 134 | B155: FALSE | C155: 365 | D155: 48664 | E155: =D155-D154 -> 357 | F155: =F154+(D155-D154)*PPD -> 45665200 | G155: 12 | H155: =H154+G155*PPM -> 45663555 | I155: =F155-H155 -> 1645
A156: 135 | B156: FALSE | C156: 365 | D156: 49049 | E156: 385 | F156: 46027100 | G156: 13 | H156: 46024422 | I156: 2678
A157: 136 | B157: TRUE | C157: 366 | D157: 49406 | E157: 357 | F157: 46362680 | G157: 12 | H157: 46357530 | I157: 5150
A158: 137 | B158: FALSE | C158: 365 | D158: 49756 | E158: 350 | F158: 46691680 | G158: 12 | H158: 46690638 | I158: 1042
A159: 138 | B159: FALSE | C159: 365 | D159: 50141 | E159: 385 | F159: 47053580 | G159: 13 | H159: 47051505 | I159: 2075
A160: 139 | B160: FALSE | C160: 365 | D160: 50498 | E160: 357 | F160: 47389160 | G160: 12 | H160: 47384613 | I160: 4547
A161: 140 | B161: TRUE | C161: 366 | D161: 50883 | E161: 385 | F161: 47751060 | G161: 13 | H161: 47745480 | I161: 5580
A162: 141 | B162: FALSE | C162: 365 | D162: 51233 | E162: 350 | F162: 48080060 | G162: 12 | H162: 48078588 | I162: 1472
A163: 142 | B163: FALSE | C163: 365 | D163: 51590 | E163: 357 | F163: 48415640 | G163: 12 | H163: 48411696 | I163: 3944
A164: 143 | B164: FALSE | C164: 365 | D164: 51975 | E164: 385 | F164: 48777540 | G164: 13 | H164: 48772563 | I164: 4977
A165: 144 | B165: TRUE | C165: 366 | D165: 52325 | E165: 350 | F165: 49106540 | G165: 12 | H165: 49105671 | I165: 869
A166: 145 | B166: FALSE | C166: 365 | D166: 52682 | E166: 357 | F166: 49442120 | G166: 12 | H166: 49438779 | I166: 3341
A167: 146 | B167: FALSE | C167: 365 | D167: 53067 | E167: 385 | F167: 49804020 | G167: 13 | H167: 49799646 | I167: 4374
A168: 147 | B168: FALSE | C168: 365 | D168: 53417 | E168: 350 | F168: 50133020 | G168: 12 | H168: 50132754 | I168: 266
A169: 148 | B169: TRUE | C169: 366 | D169: 53774 | E169: 357 | F169: 50468600 | G169: 12 | H169: 50465862 | I169: 2738
A170: 149 | B170: FALSE | C170: 365 | D170: 54159 | E170: 385 | F170: 50830500 | G170: 13 | H170: 50826729 | I170: 3771
A171: 150 | B171: FALSE | C171: 365 | D171: 54509 | E171: 350 | F171: 51159500 | G171: 12 | H171: 51159837 | I171: -337
A172: 151 | B172: FALSE | C172: 365 | D172: 54894 | E172: 385 | F172: 51521400 | G172: 13 | H172: 51520704 | I172: 696
A173: 152 | B173: TRUE | C173: 366 | D173: 55251 | E173: 357 | F173: 51856980 | G173: 12 | H173: 51853812 | I173: 3168
A174: 153 | B174: FALSE | C174: 365 | D174: 55601 | E174: 350 | F174: 52185980 | G174: 12 | H174: 52186920 | I174: -940
A175: 154 | B175: FALSE | C175: 365 | D175: 55986 | E175: 385 | F175: 52547880 | G175: 13 | H175: 52547787 | I175: 93
A176: 155 | B176: FALSE | C176: 365 | D176: 56343 | E176: 357 | F176: 52883460 | G176: 12 | H176: 52880895 | I176: 2565
A177: 156 | B177: TRUE | C177: 366 | D177: 56700 | E177: 357 | F177: 53219040 | G177: 12 | H177: 53214003 | I177: 5037
A178: 157 | B178: FALSE | C178: 365 | D178: 57078 | E178: 378 | F178: 53574360 | G178: 13 | H178: 53574870 | I178: -510
A179: 158 | B179: FALSE | C179: 365 | D179: 57435 | E179: 357 | F179: 53909940 | G179: 12 | H179: 53907978 | I179: 1962
A180: 159 | B180: FALSE | C180: 365 | D180: 57820 | E180: 385 | F180: 54271840 | G180: 13 | H180: 54268845 | I180: 2995
A181: 160 | B181: TRUE | C181: 366 | D181: 58177 | E181: 357 | F181: 54607420 | G181: 12 | H181: 54601953 | I181: 5467
A182: 161 | B182: FALSE | C182: 365 | D182: 58527 | E182: 350 | F182: 54936420 | G182: 12 | H182: 54935061 | I182: 1359
A183: 162 | B183: =isJulianLeapYear(A183) -> FALSE | C183: =IF(B183,366,365) -> 365 | D183: 58912 | E183: 385 | F183: 55298320 | G183: 13 | H183: 55295928 | I183: 2392
A184: 163 | B184: FALSE | C184: 365 | D184: 59269 | E184: 357 | F184: 55633900 | G184: 12 | H184: 55629036 | I184: 4864
A185: 164 | B185: TRUE | C185: 366 | D185: 59619 | E185: 350 | F185: 55962900 | G185: 12 | H185: 55962144 | I185: 756
A186: 165 | B186: FALSE | C186: 365 | D186: 60004 | E186: 385 | F186: 56324800 | G186: 13 | H186: 56323011 | I186: 1789
A187: 166 | B187: FALSE | C187: 365 | D187: 60361 | E187: 357 | F187: 56660380 | G187: 12 | H187: 56656119 | I187: 4261
A188: 167 | B188: FALSE | C188: 365 | D188: 60711 | E188: 350 | F188: 56989380 | G188: 12 | H188: 56989227 | I188: 153
A189: 168 | B189: TRUE | C189: 366 | D189: 61096 | E189: 385 | F189: 57351280 | G189: 13 | H189: 57350094 | I189: 1186
A190: 169 | B190: FALSE | C190: 365 | D190: 61453 | E190: 357 | F190: 57686860 | G190: 12 | H190: 57683202 | I190: 3658
A191: 170 | B191: FALSE | C191: 365 | D191: 61838 | E191: 385 | F191: 58048760 | G191: 13 | H191: 58044069 | I191: 4691
A192: 171 | B192: FALSE | C192: 365 | D192: 62188 | E192: 350 | F192: 58377760 | G192: 12 | H192: 58377177 | I192: 583
A193: 172 | B193: TRUE | C193: 366 | D193: 62545 | E193: 357 | F193: 58713340 | G193: 12 | H193: 58710285 | I193: 3055
A194: 173 | B194: FALSE | C194: 365 | D194: 62930 | E194: 385 | F194: 59075240 | G194: 13 | H194: 59071152 | I194: 4088
A195: 174 | B195: FALSE | C195: 365 | D195: 63280 | E195: 350 | F195: 59404240 | G195: 12 | H195: 59404260 | I195: -20
A196: 175 | B196: FALSE | C196: 365 | D196: 63637 | E196: 357 | F196: 59739820 | G196: 12 | H196: 59737368 | I196: 2452
A197: 176 | B197: TRUE | C197: 366 | D197: 64022 | E197: 385 | F197: 60101720 | G197: 13 | H197: 60098235 | I197: 3485
A198: 177 | B198: FALSE | C198: 365 | D198: 64372 | E198: 350 | F198: 60430720 | G198: 12 | H198: 60431343 | I198: -623
A199: 178 | B199: FALSE | C199: 365 | D199: 64757 | E199: 385 | F199: 60792620 | G199: 13 | H199: 60792210 | I199: 410
A200: 179 | B200: FALSE | C200: 365 | D200: 65114 | E200: 357 | F200: 61128200 | G200: 12 | H200: 61125318 | I200: 2882
... 391 more rows

Sheet Solar Cycle
A1: Year in Solar Cycle | B1: Solar Cycle | C1: Easter Sunday | D1: Elapsed | E1: Difference | F1: Top
A2: =StartSolar -> 26 | B2: 1 | C2: =LOOKUP(A2,Data!A$22:A$591,Data!F$22:F$591) -> 8606640 | D2: =LOOKUP(A2,Data!A$22:A$591,Data!H$22:H$591) -> 8605290 | E2: =C2-D2 -> 1350 | F2: 1500
A3: =A2+28 -> 54 | B3: =MOD(B2,28)+1 -> 2 | C3: =LOOKUP(A3,Data!A$22:A$591,Data!F$22:F$591) -> 18213440 | D3: =LOOKUP(A3,Data!A$22:A$591,Data!H$22:H$591) -> 18209904 | E3: =C3-D3 -> 3536 | F3: =F2 -> 1500
A4: =A3+28 -> 82 | B4: =MOD(B3,28)+1 -> 3 | C4: =LOOKUP(A4,Data!A$22:A$591,Data!F$22:F$591) -> 27813660 | D4: =LOOKUP(A4,Data!A$22:A$591,Data!H$22:H$591) -> 27814518 | E4: =C4-D4 -> -858 | F4: =F3 -> 1500
A5: 110 | B5: 4 | C5: =LOOKUP(A5,Data!A$22:A$591,Data!F$22:F$591) -> 37420460 | D5: =LOOKUP(A5,Data!A$22:A$591,Data!H$22:H$591) -> 37419132 | E5: 1328 | F5: 1500
A6: 138 | B6: 5 | C6: =LOOKUP(A6,Data!A$22:A$591,Data!F$22:F$591) -> 47053580 | D6: =LOOKUP(A6,Data!A$22:A$591,Data!H$22:H$591) -> 47051505 | E6: 2075 | F6: 1500
A7: 166 | B7: 6 | C7: =LOOKUP(A7,Data!A$22:A$591,Data!F$22:F$591) -> 56660380 | D7: =LOOKUP(A7,Data!A$22:A$591,Data!H$22:H$591) -> 56656119 | E7: 4261 | F7: 1500
A8: 194 | B8: 7 | C8: =LOOKUP(A8,Data!A$22:A$591,Data!F$22:F$591) -> 66260600 | D8: =LOOKUP(A8,Data!A$22:A$591,Data!H$22:H$591) -> 66260733 | E8: -133 | F8: 1500
A9: 222 | B9: 8 | C9: =LOOKUP(A9,Data!A$22:A$591,Data!F$22:F$591) -> 75893720 | D9: =LOOKUP(A9,Data!A$22:A$591,Data!H$22:H$591) -> 75893106 | E9: 614 | F9: 1500
A10: 250 | B10: 9 | C10: =LOOKUP(A10,Data!A$22:A$591,Data!F$22:F$591) -> 85500520 | D10: =LOOKUP(A10,Data!A$22:A$591,Data!H$22:H$591) -> 85497720 | E10: 2800 | F10: 1500
A11: 278 | B11: 10 | C11: =LOOKUP(A11,Data!A$22:A$591,Data!F$22:F$591) -> 95107320 | D11: =LOOKUP(A11,Data!A$22:A$591,Data!H$22:H$591) -> 95102334 | E11: 4986 | F11: 1500
A12: 306 | B12: 11 | C12: =LOOKUP(A12,Data!A$22:A$591,Data!F$22:F$591) -> 104733860 | D12: =LOOKUP(A12,Data!A$22:A$591,Data!H$22:H$591) -> 104734707 | E12: -847 | F12: 1500
A13: 334 | B13: 12 | C13: =LOOKUP(A13,Data!A$22:A$591,Data!F$22:F$591) -> 114340660 | D13: =LOOKUP(A13,Data!A$22:A$591,Data!H$22:H$591) -> 114339321 | E13: 1339 | F13: 1500
A14: 362 | B14: 13 | C14: =LOOKUP(A14,Data!A$22:A$591,Data!F$22:F$591) -> 123947460 | D14: =LOOKUP(A14,Data!A$22:A$591,Data!H$22:H$591) -> 123943935 | E14: 3525 | F14: 1500
A15: 390 | B15: 14 | C15: =LOOKUP(A15,Data!A$22:A$591,Data!F$22:F$591) -> 133580580 | D15: =LOOKUP(A15,Data!A$22:A$591,Data!H$22:H$591) -> 133576308 | E15: 4272 | F15: 1500
A16: 418 | B16: 15 | C16: =LOOKUP(A16,Data!A$22:A$591,Data!F$22:F$591) -> 143180800 | D16: =LOOKUP(A16,Data!A$22:A$591,Data!H$22:H$591) -> 143180922 | E16: -122 | F16: 1500
A17: 446 | B17: 16 | C17: =LOOKUP(A17,Data!A$22:A$591,Data!F$22:F$591) -> 152787600 | D17: =LOOKUP(A17,Data!A$22:A$591,Data!H$22:H$591) -> 152785536 | E17: 2064 | F17: 1500
A18: 474 | B18: 17 | C18: =LOOKUP(A18,Data!A$22:A$591,Data!F$22:F$591) -> 162420720 | D18: =LOOKUP(A18,Data!A$22:A$591,Data!H$22:H$591) -> 162417909 | E18: 2811 | F18: 1500
A19: 502 | B19: 18 | C19: =LOOKUP(A19,Data!A$22:A$591,Data!F$22:F$591) -> 172027520 | D19: =LOOKUP(A19,Data!A$22:A$591,Data!H$22:H$591) -> 172022523 | E19: 4997 | F19: 1500
A20: 530 | B20: 19 | C20: =LOOKUP(A20,Data!A$22:A$591,Data!F$22:F$591) -> 181627740 | D20: =LOOKUP(A20,Data!A$22:A$591,Data!H$22:H$591) -> 181627137 | E20: 603 | F20: 1500
A21: 558 | B21: 20 | C21: =LOOKUP(A21,Data!A$22:A$591,Data!F$22:F$591) -> 191260860 | D21: =LOOKUP(A21,Data!A$22:A$591,Data!H$22:H$591) -> 191259510 | E21: 1350 | F21: 1500
A22: 586 | B22: 21 | C22: =LOOKUP(A22,Data!A$22:A$591,Data!F$22:F$591) -> 195366780 | D22: =LOOKUP(A22,Data!A$22:A$591,Data!H$22:H$591) -> 195367842 | E22: -1062 | F22: 1500
A23: 614 | B23: 22 | C23: =LOOKUP(A23,Data!A$22:A$591,Data!F$22:F$591) -> 195366780 | D23: =LOOKUP(A23,Data!A$22:A$591,Data!H$22:H$591) -> 195367842 | E23: -1062 | F23: 1500
A24: 642 | B24: 23 | C24: =LOOKUP(A24,Data!A$22:A$591,Data!F$22:F$591) -> 195366780 | D24: =LOOKUP(A24,Data!A$22:A$591,Data!H$22:H$591) -> 195367842 | E24: -1062 | F24: 1500
A25: 670 | B25: 24 | C25: =LOOKUP(A25,Data!A$22:A$591,Data!F$22:F$591) -> 195366780 | D25: =LOOKUP(A25,Data!A$22:A$591,Data!H$22:H$591) -> 195367842 | E25: -1062 | F25: 1500
A26: 698 | B26: 25 | C26: =LOOKUP(A26,Data!A$22:A$591,Data!F$22:F$591) -> 195366780 | D26: =LOOKUP(A26,Data!A$22:A$591,Data!H$22:H$591) -> 195367842 | E26: -1062 | F26: 1500
A27: 726 | B27: 26 | C27: =LOOKUP(A27,Data!A$22:A$591,Data!F$22:F$591) -> 195366780 | D27: =LOOKUP(A27,Data!A$22:A$591,Data!H$22:H$591) -> 195367842 | E27: -1062 | F27: 1500
A28: 754 | B28: 27 | C28: =LOOKUP(A28,Data!A$22:A$591,Data!F$22:F$591) -> 195366780 | D28: =LOOKUP(A28,Data!A$22:A$591,Data!H$22:H$591) -> 195367842 | E28: -1062 | F28: 1500

Sheet Lunar Cycle
A1: Year in Lunar Cycle | B1: Lunar Cycle | C1: Easter Sunday | D1: Elapsed | E1: Difference | F1: Top
A2: =StartLunar -> 1 | B2: 1 | C2: =LOOKUP(A2,Data!A$22:A$591,Data!F$22:F$591) -> 0 | D2: =LOOKUP(A2,Data!A$22:A$591,Data!H$22:H$591) -> 0 | E2: =C2-D2 -> 0 | F2: 1500
A3: =A2+19 -> 20 | B3: =MOD(B2,19)+1 -> 2 | C3: =LOOKUP(A3,Data!A$22:A$591,Data!F$22:F$591) -> 6527360 | D3: =LOOKUP(A3,Data!A$22:A$591,Data!H$22:H$591) -> 6523365 | E3: =C3-D3 -> 3995 | F3: =F2 -> 1500
A4: =A3+19 -> 39 | B4: =MOD(B3,19)+1 -> 3 | C4: =LOOKUP(A4,Data!A$22:A$591,Data!F$22:F$591) -> 13048140 | D4: =LOOKUP(A4,Data!A$22:A$591,Data!H$22:H$591) -> 13046730 | E4: =C4-D4 -> 1410 | F4: =F3 -> 1500
A5: 58 | B5: 4 | C5: =LOOKUP(A5,Data!A$22:A$591,Data!F$22:F$591) -> 19568920 | D5: =LOOKUP(A5,Data!A$22:A$591,Data!H$22:H$591) -> 19570095 | E5: -1175 | F5: 1500
A6: 77 | B6: 5 | C6: =LOOKUP(A6,Data!A$22:A$591,Data!F$22:F$591) -> 26096280 | D6: =LOOKUP(A6,Data!A$22:A$591,Data!H$22:H$591) -> 26093460 | E6: 2820 | F6: 1500
A7: 96 | B7: 6 | C7: =LOOKUP(A7,Data!A$22:A$591,Data!F$22:F$591) -> 32617060 | D7: =LOOKUP(A7,Data!A$22:A$591,Data!H$22:H$591) -> 32616825 | E7: 235 | F7: 1500
A8: 115 | B8: 7 | C8: =LOOKUP(A8,Data!A$22:A$591,Data!F$22:F$591) -> 39144420 | D8: =LOOKUP(A8,Data!A$22:A$591,Data!H$22:H$591) -> 39140190 | E8: 4230 | F8: 1500
A9: 134 | B9: 8 | C9: =LOOKUP(A9,Data!A$22:A$591,Data!F$22:F$591) -> 45665200 | D9: =LOOKUP(A9,Data!A$22:A$591,Data!H$22:H$591) -> 45663555 | E9: 1645 | F9: 1500
A10: 153 | B10: 9 | C10: =LOOKUP(A10,Data!A$22:A$591,Data!F$22:F$591) -> 52185980 | D10: =LOOKUP(A10,Data!A$22:A$591,Data!H$22:H$591) -> 52186920 | E10: -940 | F10: 1500
A11: 172 | B11: 10 | C11: =LOOKUP(A11,Data!A$22:A$591,Data!F$22:F$591) -> 58713340 | D11: =LOOKUP(A11,Data!A$22:A$591,Data!H$22:H$591) -> 58710285 | E11: 3055 | F11: 1500
A12: 191 | B12: 11 | C12: =LOOKUP(A12,Data!A$22:A$591,Data!F$22:F$591) -> 65234120 | D12: =LOOKUP(A12,Data!A$22:A$591,Data!H$22:H$591) -> 65233650 | E12: 470 | F12: 1500
A13: 210 | B13: 12 | C13: =LOOKUP(A13,Data!A$22:A$591,Data!F$22:F$591) -> 71761480 | D13: =LOOKUP(A13,Data!A$22:A$591,Data!H$22:H$591) -> 71757015 | E13: 4465 | F13: 1500
A14: 229 | B14: 13 | C14: =LOOKUP(A14,Data!A$22:A$591,Data!F$22:F$591) -> 78282260 | D14: =LOOKUP(A14,Data!A$22:A$591,Data!H$22:H$591) -> 78280380 | E14: 1880 | F14: 1500
A15: 248 | B15: 14 | C15: =LOOKUP(A15,Data!A$22:A$591,Data!F$22:F$591) -> 84803040 | D15: =LOOKUP(A15,Data!A$22:A$591,Data!H$22:H$591) -> 84803745 | E15: -705 | F15: 1500
A16: 267 | B16: 15 | C16: =LOOKUP(A16,Data!A$22:A$591,Data!F$22:F$591) -> 91330400 | D16: =LOOKUP(A16,Data!A$22:A$591,Data!H$22:H$591) -> 91327110 | E16: 3290 | F16: 1500
A17: 286 | B17: 16 | C17: =LOOKUP(A17,Data!A$22:A$591,Data!F$22:F$591) -> 97851180 | D17: =LOOKUP(A17,Data!A$22:A$591,Data!H$22:H$591) -> 97850475 | E17: 705 | F17: 1500
A18: 305 | B18: 17 | C18: =LOOKUP(A18,Data!A$22:A$591,Data!F$22:F$591) -> 104378540 | D18: =LOOKUP(A18,Data!A$22:A$591,Data!H$22:H$591) -> 104373840 | E18: 4700 | F18: 1500
A19: 324 | B19: 18 | C19: =LOOKUP(A19,Data!A$22:A$591,Data!F$22:F$591) -> 110899320 | D19: =LOOKUP(A19,Data!A$22:A$591,Data!H$22:H$591) -> 110897205 | E19: 2115 | F19: 1500
A20: 343 | B20: 19 | C20: =LOOKUP(A20,Data!A$22:A$591,Data!F$22:F$591) -> 117420100 | D20: =LOOKUP(A20,Data!A$22:A$591,Data!H$22:H$591) -> 117420570 | E20: -470 | F20: 1500
A21: 362 | B21: 1 | C21: =LOOKUP(A21,Data!A$22:A$591,Data!F$22:F$591) -> 123947460 | D21: =LOOKUP(A21,Data!A$22:A$591,Data!H$22:H$591) -> 123943935 | E21: 3525 | F21: 1500
A22: 381 | B22: 2 | C22: =LOOKUP(A22,Data!A$22:A$591,Data!F$22:F$591) -> 130468240 | D22: =LOOKUP(A22,Data!A$22:A$591,Data!H$22:H$591) -> 130467300 | E22: 940 | F22: 1500
A23: =A22+19 -> 400 | B23: =MOD(B22,19)+1 -> 3 | C23: =LOOKUP(A23,Data!A$22:A$591,Data!F$22:F$591) -> 136995600 | D23: =LOOKUP(A23,Data!A$22:A$591,Data!H$22:H$591) -> 136990665 | E23: =C23-D23 -> 4935 | F23: =F22 -> 1500
A24: 419 | B24: 4 | C24: =LOOKUP(A24,Data!A$22:A$591,Data!F$22:F$591) -> 143516380 | D24: =LOOKUP(A24,Data!A$22:A$591,Data!H$22:H$591) -> 143514030 | E24: 2350 | F24: 1500
A25: 438 | B25: 5 | C25: =LOOKUP(A25,Data!A$22:A$591,Data!F$22:F$591) -> 150037160 | D25: =LOOKUP(A25,Data!A$22:A$591,Data!H$22:H$591) -> 150037395 | E25: -235 | F25: 1500
A26: 457 | B26: 6 | C26: =LOOKUP(A26,Data!A$22:A$591,Data!F$22:F$591) -> 156564520 | D26: =LOOKUP(A26,Data!A$22:A$591,Data!H$22:H$591) -> 156560760 | E26: 3760 | F26: 1500
A27: 476 | B27: 7 | C27: =LOOKUP(A27,Data!A$22:A$591,Data!F$22:F$591) -> 163085300 | D27: =LOOKUP(A27,Data!A$22:A$591,Data!H$22:H$591) -> 163084125 | E27: 1175 | F27: 1500
A28: 495 | B28: 8 | C28: =LOOKUP(A28,Data!A$22:A$591,Data!F$22:F$591) -> 169606080 | D28: =LOOKUP(A28,Data!A$22:A$591,Data!H$22:H$591) -> 169607490 | E28: -1410 | F28: 1500
A29: 514 | B29: 9 | C29: =LOOKUP(A29,Data!A$22:A$591,Data!F$22:F$591) -> 176133440 | D29: =LOOKUP(A29,Data!A$22:A$591,Data!H$22:H$591) -> 176130855 | E29: 2585 | F29: 1500
A30: 533 | B30: 10 | C30: =LOOKUP(A30,Data!A$22:A$591,Data!F$22:F$591) -> 182654220 | D30: =LOOKUP(A30,Data!A$22:A$591,Data!H$22:H$591) -> 182654220 | E30: 0 | F30: 1500
A31: 552 | B31: 11 | C31: =LOOKUP(A31,Data!A$22:A$591,Data!F$22:F$591) -> 189181580 | D31: =LOOKUP(A31,Data!A$22:A$591,Data!H$22:H$591) -> 189177585 | E31: 3995 | F31: 1500
A32: 571 | B32: 12 | C32: =LOOKUP(A32,Data!A$22:A$591,Data!F$22:F$591) -> 195366780 | D32: =LOOKUP(A32,Data!A$22:A$591,Data!H$22:H$591) -> 195367842 | E32: -1062 | F32: 1500
A33: 590 | B33: 13 | C33: =LOOKUP(A33,Data!A$22:A$591,Data!F$22:F$591) -> 195366780 | D33: =LOOKUP(A33,Data!A$22:A$591,Data!H$22:H$591) -> 195367842 | E33: -1062 | F33: 1500
A34: 609 | B34: 14 | C34: =LOOKUP(A34,Data!A$22:A$591,Data!F$22:F$591) -> 195366780 | D34: =LOOKUP(A34,Data!A$22:A$591,Data!H$22:H$591) -> 195367842 | E34: -1062 | F34: 1500
A35: 628 | B35: 15 | C35: =LOOKUP(A35,Data!A$22:A$591,Data!F$22:F$591) -> 195366780 | D35: =LOOKUP(A35,Data!A$22:A$591,Data!H$22:H$591) -> 195367842 | E35: -1062 | F35: 1500
A36: 647 | B36: 16 | C36: =LOOKUP(A36,Data!A$22:A$591,Data!F$22:F$591) -> 195366780 | D36: =LOOKUP(A36,Data!A$22:A$591,Data!H$22:H$591) -> 195367842 | E36: -1062 | F36: 1500

Sheet Zoom
A1: 1 | B1: = Current Zoom Level
A2: Level | B2: Years | C2: MajorTick | D2: MinorTick | E2: Shift | F2: Connect
A3: =ROW()-3 -> 0 | B3: 532 | C3: 76 | D3: 19 | F3: FALSE
A4: 1 | B4: 532 | C4: 76 | D4: 19 | F4: TRUE
A5: 2 | B5: =B4/2 -> 266 | C5: 19 | D5: 1 | E5: 76 | F5: TRUE
A6: 3 | B6: 152 | C6: 19 | D6: 1 | E6: 76 | F6: TRUE
A7: 4 | B7: 152 | C7: 4 | D7: 1 | E7: 76 | F7: TRUE
A8: 5 | B8: 76 | C8: 4 | D8: 1 | E8: =2*19 -> 38 | F8: TRUE
A9: 6 | B9: 19 | C9: 1 | D9: 1 | E9: 19 | F9: TRUE

Sheet Labels
A1: Year | B1: Hours | C1: ="Span "&B2-B17&"h" -> Span 225h
A2: 533 | B2: 180
A3: =A2 -> 533 | B3: =B2-15 -> 165
A4: =A3 -> 533 | B4: =B3-15 -> 150
A5: =A4 -> 533 | B5: 135
A6: =A5 -> 533 | B6: 120
A7: 533 | B7: 105
A8: 533 | B8: 90
A9: 533 | B9: 75
A10: 533 | B10: 60
A11: 533 | B11: 45
A12: 533 | B12: 30
A13: 533 | B13: 15
A14: 533 | B14: 0
A15: 533 | B15: -15
A16: 533 | B16: -30
A17: =A16 -> 533 | B17: -45
